Cogmind - Beta 10.2 @@@ ROGUE MODE // 2022.01.03 @ 23:59:39 Player: Pogmind Result: Destroyed by Y-72 Warden with Quantum Rifle Performance ------------- Evolutions (8) 4000 Regions Visited (22) 4400 Robots Destroyed (459) 2295 Value Destroyed (26781) 26781 Prototype IDs (55) 1100 Alien Tech Used (0) 0 Bonus (14841) 14841 TOTAL SCORE: 53417 Bonus ------- High Alert Combat Kills 5577 Follower Combat Kills 4595 Entered Garrisons 1600 Used RIF Installer 4000 Scanned by Researcher 500 Friendly Fire -1431 Cogmind --------- Core Integrity 0/1450 Matter 194/300 Energy 230/350 System Corruption 20% Temperature Cool (9) Movement Core (750) Ox14 Location -2/Research Parts ------- > --- POWER (2) -------- Quantum Reactor > --- PROPULSION (4) --- (None) > --- UTILITY (14) ----- Advanced Targeting Computer Relay Coupler [NC] (37) Relay Coupler [NC] (37) Relay Coupler [NC] (35) > --- WEAPON (3) ------- Potential Cannon > --- INVENTORY (4) ---- Experimental Shock Absorption System Peak State ------------ > --- POWER ------------ Particle Reactor Particle Reactor > --- PROPULSION ------- Armored Heavy Treads Centrium Heavy Treads > --- UTILITY ---------- Advanced Cryofiber Web Experimental Cooling System High-capacity Storage Unit High-capacity Storage Unit Improved Armor Integrity Analyzer Experimental Weapon Cycler SHELL Armor Advanced Force Field Antimissile System Relay Coupler [NC] Relay Coupler [Sentry] Relay Coupler [Hunter] > --- WEAPON ----------- Enhanced Nova Cannon Tri-rail Accelerator > --- INVENTORY -------- Centrium Heavy Treads Centrium Heavy Treads Experimental Cooling System Advanced Coolant Injector Energy Well Experimental Energy Well Relay Coupler [NC] Relay Coupler [NC] Relay Coupler [NC] Enhanced Nova Cannon Enhanced Nova Cannon Potential Cannon Gamma Bomb Array Advanced Remote Datajack Vibroblade [Rating: 174] Favorites ----------- Power Particle Reactor Engine Improved Deuterium Engine Power Core Micro Fission Core Reactor Particle Reactor Propulsion Light Treads Treads Light Treads Leg Carbon-fiber Leg Wheel Armored Wheel Hover Unit Improved Hover Unit Flight Unit Field Propulsion Array Utility High-capacity Storage Unit Device Experimental Heat Sink Storage High-capacity Storage Unit Processor Enhanced Optical Array Hackware Relay Coupler [Grunt] Protection Improved Medium Armor Plating Weapon KE Penetrator Energy Gun Cooled Pulse Rifle Energy Cannon Heavy Particle Cannon Ballistic Gun KE Penetrator Ballistic Cannon Hypervelocity Mass Driver Launcher Rocket Launcher Special Weapon Advanced Remote Datajack Impact Weapon Powered Hammer Slashing Weapon Ionic Axe Piercing Weapon Force Lance Special Melee Weapon Datajack Build | -11 -10 -10 -9 -9 -9 -9 -7 -7 -7 -7 -6 -6 -5 -5 -4 -4 -4 -4 -3 -3 -3 -2 ------- Run | Scr Mat Min Mat Sto Gar Rec Fac Gar Fac Gar Fac Gar Fac Gar Fac Gar Fac Gar Res Tes Gar Res Slots Evolved 16 | . . . 2 . . . 4 . . . 2 . 2 . 2 . . . 2 . . 2 Power 1 | . . . . . . . . . . . . . . . . . . . 1 . . . Propulsion 2 | . . . 1 . . . . . . . . . 1 . . . . . . . . . Utility 12 | . . . . . . . 4 . . . 2 . 1 . 2 . . . 1 . . 2 Weapon 1 | . . . 1 . . . . . . . . . . . . . . . . . . . Parts Attached 816 | 10 8 9 21 35 15 3 31 46 32 25 28 19 17 32 26 48 50 73 87 96 35 70 Power 47 | 1 . 2 2 3 1 . 2 1 . 2 1 . . . 2 . 2 5 5 9 5 4 Engine 12 | 1 . 2 1 3 1 . 1 1 . 1 1 . . . . . . . . . . . Core 6 | . . . 1 . . . 1 . . 1 . . . . . . . 3 . . . . Reactor 29 | . . . . . . . . . . . . . . . 2 . 2 2 5 9 5 4 Propulsion 62 | 3 . 4 5 8 5 . 2 1 2 1 1 . 1 . . 4 1 8 3 5 . 8 Treads 32 | 2 . 2 . 7 5 . 1 1 . . . . . . . . . 5 2 5 . 2 Leg 3 | . . . 3 . . . . . . . . . . . . . . . . . . . Wheel 19 | 1 . 2 1 . . . 1 . 2 1 1 . 1 . . 4 1 3 1 . . . Hover 1 | . . . 1 . . . . . . . . . . . . . . . . . . . Flight 7 | . . . . 1 . . . . . . . . . . . . . . . . . 6 Utility 281 | 2 1 2 6 2 . . 7 14 10 7 17 10 7 10 10 12 23 26 34 35 19 27 Device 95 | 1 . 1 2 1 . . 2 . 3 2 2 1 2 2 2 2 7 7 14 23 7 14 Storage 15 | 1 1 . 3 1 . . . . . . . . . . . 1 . 2 . . 3 3 Processor 10 | . . 1 1 . . . . . . . 2 . . . . . . . 3 2 . 1 Hackware 78 | . . . . . . . 2 6 6 1 7 6 2 5 4 6 8 6 5 3 7 4 Protection 83 | . . . . . . . 3 8 1 4 6 3 3 3 4 3 8 11 12 7 2 5 Artifact . | . . . . . . . . . . . . . . . . . . . . . . . Weapon 426 | 4 7 1 8 22 9 3 20 30 20 15 9 9 9 22 14 32 24 34 45 47 11 31 Energy Gun 20 | 1 1 . . 5 . . 4 2 1 . . . 1 . . 1 . . . 2 . 2 Energy Cannon 59 | . 2 1 6 1 . . . 1 . . . . . . . 6 5 1 2 15 3 16 Ballistic Gun 89 | 3 4 . 2 11 3 . 1 . 6 3 2 1 1 9 6 18 5 11 2 1 . . Ballistic Cannon 93 | . . . . 2 2 1 8 12 2 5 3 2 2 . 1 . . 10 20 18 4 1 Launcher 32 | . . . . . 3 . 1 . 1 3 1 1 1 4 1 5 . 4 1 2 1 3 Special Weapon 86 | . . . . . . . 4 9 9 1 2 4 4 4 5 2 9 7 9 7 3 7 Impact Weapon 2 | . . . . . . . 1 . . . . . . . . . . . 1 . . . Slashing Weapon 33 | . . . . 3 1 . . 6 1 3 1 1 . 5 1 . 5 1 2 1 . 2 Piercing Weapon 9 | . . . . . . . . . . . . . . . . . . . 8 1 . . Special Melee Weapon 3 | . . . . . . 2 1 . . . . . . . . . . . . . . . Unidentified Prototypes 30 | . 1 . 1 4 . . 2 . . . 2 . 1 . . . 3 . 4 10 . 2 Parts Lost 104 | . 1 10 1 8 4 . 3 2 . . 2 2 2 3 1 . 4 17 1 3 5 35 Power 11 | . . 2 1 1 . . . . . . 1 . . . . . . 2 . . 1 3 Propulsion 29 | . . 4 . 2 4 . . 1 . . . . 1 . . . . 7 . . . 10 Utility 34 | . . 2 . 1 . . . . . . 1 1 . 1 . . 3 5 1 1 2 16 Weapon 30 | . 1 2 . 4 . . 3 1 . . . 1 1 2 1 . 1 3 . 2 2 6 Highest Loss Streak 15 | . 1 4 1 6 3 . 1 1 . . 2 1 1 1 1 . 1 10 1 1 2 15 Average Slot Usage (%) 89 | . 99 89 88 98 97 100 96 98 99 99 93 89 87 87 83 83 91 90 84 81 76 68 Engine 3 | . 14 12 1 8 11 11 4 5 7 2 5 6 5 5 2 . . . . . . . Core 1 | . . . 8 2 . . 2 1 . 4 . . . . . . . 3 . . . . Reactor 3 | . . . . . . . . . . . . . . . 2 5 5 . 9 9 8 6 Treads 10 | . 28 24 . 26 31 33 20 15 . . . . . . . . . 9 5 9 9 6 Leg 1 | . . . 24 5 . . . . . . . . . . . . . . . . . . Wheel 5 | . . 1 1 . . . 1 7 22 23 17 13 11 11 10 11 21 4 3 . . . Device 6 | . 14 6 9 2 . . 6 2 5 5 1 . . . 3 5 1 9 12 18 5 14 Storage 14 | . 14 13 11 19 22 22 15 15 15 15 13 13 11 11 10 10 15 16 14 14 14 9 Processor 2 | . . 4 . . . . . . . . 5 6 5 5 5 5 4 . 3 1 4 3 Hackware 12 | . . . . . . . 12 6 13 14 19 20 28 27 22 20 20 16 11 8 17 12 Protection 6 | . . . . . . . 6 20 10 9 9 8 4 4 9 9 7 11 8 5 4 3 Energy Gun 2 | . . . . 3 . . 13 14 6 . . . . . . . . . . . . . Energy Cannon 1 | . 6 . 27 5 . . . . . . . . . . . . 2 . . 2 . 3 Ballistic Gun 7 | . 20 25 1 19 14 22 1 . 10 13 12 12 11 13 11 12 8 7 2 . . . Ballistic Cannon 4 | . . . . 3 16 5 4 5 1 4 1 . 1 . . . . 5 7 9 4 2 Special Weapon 1 | . . . . . . . . 1 3 . 4 4 3 . 3 1 3 1 1 1 3 . Naked Turns 36 | . . 19 17 . . . . . . . . . . . . . . . . . . . Heaviest Build 210 | 11 44 42 56 80 81 80 95 116 112 108 108 111 101 99 125 138 147 168 199 210 198 193 Greatest Support 160 | 40 40 40 45 60 60 60 60 12 36 36 40 40 56 56 56 56 52 69 130 140 120 160 Greatest Overweight (x) 9 | 1 1 4 2 1 1 1 7 9 9 2 2 2 2 1 2 3 2 7 6 1 1 1 Average Overweight (x) 2 | . . 1 . . 1 1 2 8 2 2 2 2 1 1 1 1 2 4 4 1 1 . Largest Inventory Capacity 26 | 6 12 12 12 20 20 20 20 20 20 20 20 20 20 20 20 26 26 26 26 26 26 26 Average Capacity 21 | 5 11 11 8 18 20 20 20 20 20 20 20 20 20 20 20 20 26 26 26 26 26 17 Most Carried 26 | 6 12 12 12 20 20 20 20 20 20 20 20 20 20 20 20 26 26 26 26 26 26 25 Average Carried 20 | 4 10 11 7 17 19 19 19 19 19 19 19 19 19 19 19 20 25 23 25 25 25 16 Final Capacity 26 | 6 12 4 12 20 20 20 20 20 20 20 20 20 20 20 20 26 26 26 26 26 26 4 Final Carried 26 | 6 12 4 12 20 20 20 20 20 19 20 20 20 20 20 20 26 24 26 26 26 26 1 Class Distribution -------------------- 26% | Botlord-Mutant 21% | Bothacker-Mutant 10% | Botlord-Tank 7% | Hauler-Gunner 6% | Mutant 6% | Bothacker-Tank 4% | Hauler-Mutant Dominant Class ---------------- Mutant | -10/Materials Mutant | -10/Mines Gunner | -9/Materials Hauler-Gunner | -9/Storage Hauler-Gunner | -9/Garrison Commander-Mutant | -9/Recycling Bothacker-Mutant | -7/Factory Bothacker-Mutant | -7/Garrison Bothacker-Mutant | -7/Factory Bothacker-Mutant | -7/Garrison Bothacker-Mutant | -6/Factory Botlord-Mutant | -6/Garrison Botlord-Mutant | -5/Factory Botlord-Mutant | -5/Garrison Botlord-Mutant | -4/Factory Botlord-Mutant | -4/Garrison Botlord-Mutant | -4/Factory Botlord-Tank | -4/Garrison Botlord-Mutant | -3/Research Hauler-Mutant | -3/Testing Botlord-Mutant | -3/Garrison Botlord-Mutant | -2/Research Resources | -11 -10 -10 -9 -9 -9 -9 -7 -7 -7 -7 -6 -6 -5 -5 -4 -4 -4 -4 -3 -3 -3 -2 ----------- Run | Scr Mat Min Mat Sto Gar Rec Fac Gar Fac Gar Fac Gar Fac Gar Fac Gar Fac Gar Res Tes Gar Res Matter Collected 20200 | 239 271 241 249 837 459 271 561 846 697 685 542 504 414 635 626 918 953 2297 2486 3254 1254 961 Remotely 329 | 95 86 . . . . . . . . . . . . . . . . . . . . 148 Salvage Created 21386 | 58 342 202 865 1155 628 246 586 661 426 392 269 158 207 562 306 746 666 702 2883 4822 1431 3073 Parts 988 | 3 15 12 60 79 38 21 37 28 25 24 25 14 8 15 16 30 31 37 124 199 50 97 Haulers Intercepted 5 | . . . 1 1 . . . . 1 . . . . . . . . . 1 1 . . Recyclers Shooed 10 | . . 1 1 . . . 2 . . . 1 . 1 . 1 . . . . 1 . 2 Parts Field Recycled . | . . . . . . . . . . . . . . . . . . . . . . . Retrieved Matter . | . . . . . . . . . . . . . . . . . . . . . . . Parts Self-Destructed . | . . . . . . . . . . . . . . . . . . . . . . . Prevented . | . . . . . . . . . . . . . . . . . . . . . . . Kills | -11 -10 -10 -9 -9 -9 -9 -7 -7 -7 -7 -6 -6 -5 -5 -4 -4 -4 -4 -3 -3 -3 -2 ------- Run | Scr Mat Min Mat Sto Gar Rec Fac Gar Fac Gar Fac Gar Fac Gar Fac Gar Fac Gar Res Tes Gar Res Combat Hostiles Destroyed 378 | . 12 5 18 23 23 6 9 13 5 15 4 8 4 15 4 20 11 20 32 62 28 41 Melee 2 | . . . . . . . . . . . . 1 . 1 . . . . . . . . Guns 89 | . 12 5 1 16 9 4 3 6 3 . 2 1 4 6 3 3 7 3 1 . . . Cannons 193 | . . . 17 7 8 2 4 7 . 4 1 . . . . 1 3 10 30 54 25 20 AOE 81 | . . . . . 6 . 2 . 2 11 1 6 . 8 1 16 1 5 1 4 3 14 Classes Destroyed 22 | 1 3 1 2 4 1 1 1 . 1 . . . . . . . 2 . . 2 . 3 Worker 20 | . . . . 2 . . 1 . 3 . 2 . . . 1 . . . 4 5 . 2 Builder 14 | . . . . 1 . 1 . . . . 3 . . . 2 . 2 . 1 2 . 2 Tunneler 5 | . . . 1 . . . 2 . . . . . 1 . . . 1 . . . . . Hauler 5 | . . . 1 1 . . . . 1 . . . . . . . . . 1 1 . . Recycler 22 | 1 . 1 1 1 . 1 2 . 1 . . . . . . . . . 5 5 . 4 Mechanic 1 | . . . . . . . . . . . . . . . . . . . . . . 1 Operator 2 | . 1 . . . . . . . . . 1 . . . . . . . . . . . Drone 6 | . . . . . . 6 . . . . . . . . . . . . . . . . Watcher 4 | . . . . 1 . . 2 . . . . . . . . . . . . 1 . . Swarmer 97 | . 6 3 3 4 11 1 3 . 2 7 . 6 1 6 . 12 1 6 2 5 9 9 Saboteur 1 | . . . . . . . . . . . . . . . . . . . . 1 . . Grunt 151 | . 6 . 11 9 7 . 2 12 2 6 3 1 . 8 . 7 5 6 9 30 10 17 Brawler 5 | . . . . . 1 . . . . . . . . . . . . . . 2 . 2 Duelist 8 | . . . . 1 . 1 . 1 . . . . . . . . . 1 . . . 4 Protector 1 | . . . . . . . . . . . . . . . . . . . . . . 1 Researcher 1 | . . . . . . . . . . . . . . . . . . . . 1 . . Sentry 50 | . . 2 4 9 4 . 2 1 . 2 . . 1 1 . . 2 5 5 4 6 2 Demolisher 2 | . . . . . . . . . . . . . . . . . 2 . . . . . Hunter 21 | . . . . . . . . . 1 . . . . . 2 1 . 1 7 7 2 . Programmer 38 | . . . . . . . 2 . 1 . 1 1 2 . 2 . 2 . 10 12 . 5 Q-Series 1 | . . . . . . . . . . . . . . . . . . . . . . 1 Behemoth 3 | . . . . . . . . . . . . . . . . . 1 1 . . 1 . Protovariant G 1 | . . . . . . . . . . . . . . . . . . . . 1 . . Best Kill Streak 15 | 1 3 3 3 4 8 2 5 3 3 11 8 6 2 8 3 7 4 3 5 15 10 9 Combat Bots Only 13 | . 3 2 3 4 8 2 5 3 2 11 4 6 2 8 2 7 4 3 5 13 10 9 Max Kills in Single Turn 5 | 1 1 1 1 2 2 2 2 2 2 3 5 2 1 3 2 3 4 2 2 2 2 3 Gunslinging . | . . . . . . . . . . . . . . . . . . . . . . . Exploded 3 | . . . . . 2 . 2 . 2 3 1 2 . 3 1 3 1 2 1 2 2 2 Melee 1 | . . . . . . . . . . . . 1 . 1 . . . . . . . . Uniques/NPCs Destroyed . | . . . . . . . . . . . . . . . . . . . . . . . Combat | -11 -10 -10 -9 -9 -9 -9 -7 -7 -7 -7 -6 -6 -5 -5 -4 -4 -4 -4 -3 -3 -3 -2 -------- Run | Scr Mat Min Mat Sto Gar Rec Fac Gar Fac Gar Fac Gar Fac Gar Fac Gar Fac Gar Res Tes Gar Res Damage Taken 35043 | . 490 844 460 1215 850 51 514 864 205 577 673 421 162 1145 426 876 1489 4040 2081 4630 3485 9545 Core 3609 | . 63 174 39 116 94 16 72 80 8 44 56 18 20 92 54 69 151 280 144 447 106 1466 Absorbed by Shields 4387 | . . . . . . 15 27 . . 51 . . . . . . . 276 376 1321 789 1532 Reduced by Siege Mode 384 | . . . . . . . . . . . . . . . . . . . 36 159 79 110 Core Remaining (%) 60 | 100 . 5 . . . 33 . . . 70 . 91 . 88 . . . 51 . . 46 . Volleys Fired 1395 | 2 37 14 41 58 37 22 44 64 43 40 39 40 27 34 48 53 81 97 111 242 79 142 Largest 3 | 2 2 2 3 3 3 3 3 3 3 3 3 3 3 3 3 3 3 3 3 3 3 3 Hottest 334 | 40 136 46 225 225 93 81 75 125 98 98 103 106 106 94 96 238 164 183 198 252 252 334 Shots Fired 2421 | 4 74 28 83 156 95 60 88 128 72 69 64 56 46 65 78 75 129 190 207 382 108 164 Gun 829 | 4 67 28 11 127 36 44 51 66 40 31 28 27 25 48 50 36 56 37 12 1 . 4 Cannon 1200 | . 7 . 72 29 54 16 20 42 7 22 12 4 7 . . 17 26 130 160 347 88 140 Launcher 87 | . . . . . 5 . 1 . 1 12 . 5 . 8 5 14 . 7 3 11 3 12 Special 305 | . . . . . . . 16 20 24 4 24 20 14 9 23 8 47 16 32 23 17 8 Kinetic 1440 | 4 65 28 11 103 90 60 20 38 43 53 40 31 32 48 50 36 56 154 160 213 68 37 Thermal 544 | . 9 . 72 41 . . 51 70 4 . . . . . . 4 26 5 . 135 20 107 Explosive 61 | . . . . . 5 . 1 . 1 12 . 5 . 8 5 14 . 7 3 . . . Electromagnetic 71 | . . . . 12 . . . . . . . . . . . 13 . 8 12 11 3 12 Robot Hit Streak 37 | 3 8 6 9 17 27 4 27 21 6 9 13 8 10 10 7 8 9 28 11 21 29 37 Robot Miss Streak 9 | 1 4 5 3 3 2 5 4 4 4 3 4 7 4 3 5 4 6 9 4 4 2 4 Penetration Max 2 | . . . . . . . . . 1 . . . 1 1 1 . 1 1 1 2 1 . Secondary Targets 8 | . . 2 . 4 . . . . . . . . . . 2 . . . . . . . Max Gunslinging Chain 1 | . . 1 . 1 . . . . . . . . . . 1 . . . . . . . Shots Hit Robots 1605 | 3 46 19 48 104 69 95 73 79 38 37 44 21 28 50 46 36 77 107 118 255 88 124 Core Hits 817 | 2 23 9 23 40 34 11 26 28 17 29 19 9 10 26 17 32 25 38 55 141 70 133 Critical Hits 232 | . 1 . 1 1 3 . . 2 . 4 1 . . 3 5 4 3 14 61 106 18 5 Critical Kills 97 | . . . 1 1 1 . . 1 . 1 . . . 1 1 1 3 4 32 41 8 1 Critical Parts Destroyed 125 | . 1 . . . 2 . . 1 . 2 1 . . 2 4 3 . 7 24 64 10 4 Melee Attacks 167 | . . . . 4 18 69 11 11 1 6 4 2 . 19 2 . 4 1 12 1 . 2 Impact 1 | . . . . . . . 1 . . . . . . . . . . . . . . . Slashing 77 | . . . . 4 18 . . 11 1 6 4 2 . 19 2 . 4 1 3 . . 2 Piercing 10 | . . . . . . . . . . . . . . . . . . . 9 1 . . Sneak Attacks 75 | . . . . . . 65 7 . . . 1 1 . . . . . . 1 . . . Combat Hostiles 7 | . . . . . . . 7 . . . . . . . . . . . . . . . Follow-up Attacks . | . . . . . . . . . . . . . . . . . . . . . . . Damage Inflicted 50314 | 35 620 208 1030 1845 2143 457 1201 1244 590 1680 1179 787 603 2132 1305 3215 1857 3928 3016 8517 3473 9249 Guns 9553 | 35 538 198 77 1310 402 330 828 743 432 353 371 98 475 650 853 470 752 414 134 . . 90 Cannons 25408 | . 82 . 953 535 517 127 219 501 50 322 185 51 128 . . 367 648 2455 2294 7374 3081 5519 Explosions 13483 | . . . . . 473 . 154 . 108 1005 417 532 . 1012 452 2378 457 1059 383 1143 392 3518 Melee 1738 | . . . . . 751 . . . . . 206 106 . 470 . . . . 205 . . . Ramming 132 | . . 10 . . . . . . . . . . . . . . . . . . . 122 Kinetic 21448 | 35 525 198 77 996 919 457 219 447 401 675 556 149 603 650 853 470 752 2474 2107 3482 2302 2101 Thermal 13833 | . 95 . 953 644 . . 828 797 81 . . . . . . 38 1105 158 . 3980 810 4344 Explosive 9026 | . . . . . 473 . 154 . 108 1005 417 532 . 1012 452 2378 . 1059 383 . . 1053 Electromagnetic 4137 | . . . . 205 . . . . . . . . . . . 329 . 237 321 1055 361 1629 Impact . | . . . . . . . . . . . . . . . . . . . . . . . Slashing 1738 | . . . . . 751 . . . . . 206 106 . 470 . . . . 205 . . . Piercing . | . . . . . . . . . . . . . . . . . . . . . . . Highest Corruption 23 | . 1 2 . . . . 5 5 5 5 . . . . 2 2 8 8 9 23 23 20 Average Corruption 8 | . 1 1 . . . . 4 5 5 5 . . . . 1 2 4 8 6 16 23 4 Corruption Purged . | . . . . . . . . . . . . . . . . . . . . . . . Effects 830 | . . 2 . . . . 46 61 30 31 . . . . 4 24 34 131 50 215 176 26 Message Errors 148 | . . . . . . . 13 11 5 7 . . . . . 7 2 29 12 24 33 5 Matter Fused 151 | . . . . . . . 12 18 11 3 . . . . . . 10 23 4 32 32 6 Heat Flow Errors 83 | . . . . . . . 7 7 3 4 . . . . 1 4 6 16 4 15 13 3 Energy Discharges 85 | . . . . . . . 4 7 3 2 . . . . 1 4 7 13 4 18 17 5 Parts Rejected 5 | . . . . . . . . 1 . . . . . . . . . 1 . 1 2 . Data Loss (minor) 62 | . . 1 . . . . 4 7 1 2 . . . . 1 4 2 12 5 13 8 2 Data Loss (major) 36 | . . . . . . . . 2 2 2 . . . . . . . 10 2 8 9 1 Misfires 19 | . . . . . . . 2 1 1 . . . . . . . . 7 1 5 2 . Alerts 5 | . . . . . . . . . . . . . . . . . . . . 2 3 . Misdirections 41 | . . . . . . . . . . . . . . . . . . . . 15 25 1 Targeting Errors 159 | . . 1 . . . . 4 7 4 8 . . . . 1 4 6 15 12 67 27 3 Weapon Failures 36 | . . . . . . . . . . 3 . . . . . 1 1 5 6 15 5 . Overload Shots 3 | . . . . . . . . 3 . . . . . . . . . . . . . . Overflow Damage 1641 | . . . 10 10 14 . . . . 42 124 35 . 46 . 212 132 29 228 275 29 455 Projectiles 651 | . . . 10 10 . . . . . 21 . . . . . . 30 29 20 233 21 277 Explosions 758 | . . . . . 3 . . . . 21 18 35 . 46 . 212 102 . 98 42 8 173 Melee 232 | . . . . . 11 . . . . . 106 . . . . . . . 110 . . 5 Knockbacks 128 | . . . . . 4 1 4 3 1 6 1 . 2 . . . . 10 19 31 15 31 Impact . | . . . . . . . . . . . . . . . . . . . . . . . Kinetic 107 | . . . . . 4 1 4 3 1 4 1 . 2 . . . . 10 15 25 13 24 Secondary 21 | . . . . . . . . . . 2 . . . . . . . . 4 6 2 7 Self-Inflicted Damage 519 | . . 5 . . 4 . . . . . . . . 33 . 8 . . . 208 11 250 Shots 31 | . . . . . 1 . . . . . . . . 1 . 1 . . . 12 2 14 Rammed 27 | . . 1 . . . . . . . . . . . . . . . . . . . 26 Targets Rammed 27 | . . 1 . . . . . . . . . . . . . . . . . . . 26 Kicked . | . . . . . . . . . . . . . . . . . . . . . . . Crushed . | . . . . . . . . . . . . . . . . . . . . . . . Highest Temperature 657 | . 289 8 435 333 260 52 239 331 227 205 216 102 49 54 124 253 306 366 397 657 414 569 Average Temperature 105 | . 154 4 122 66 96 16 92 87 40 44 53 28 15 16 24 54 90 78 135 138 103 232 Received Heat Transfer 5211 | . 75 81 147 375 273 7 117 414 60 118 165 27 18 219 21 81 211 682 162 535 437 986 Effects 38 | . 4 . 5 . . . . . . . . . . . . . 3 . 3 12 5 6 Shutdowns 4 | . . . 1 . . . . . . . . . . . . . . . . 3 . . Energy Bleed 6 | . 1 . . . . . . . . . . . . . . . . . 1 1 1 2 Interference 20 | . 3 . 3 . . . . . . . . . . . . . 3 . 2 5 4 . Short Circuit 3 | . . . 1 . . . . . . . . . . . . . . . . . . 2 Damage (minor) 1 | . . . . . . . . . . . . . . . . . . . . 1 . . Damage (major) 2 | . . . . . . . . . . . . . . . . . . . . . . 2 Damage (core) 2 | . . . . . . . . . . . . . . . . . . . . 2 . . Siege Activations 46 | . . . . . . . . . . . . . . . . . . . 11 13 13 9 Total Turns 561 | . . . . . . . . . . . . . . . . . . . 85 212 153 111 Longest Duration 38 | . . . . . . . . . . . . . . . . . . . 29 38 34 17 Robots Corrupted 13 | . . . . . . . . . . . . . . . . 2 . 2 . 3 . 6 Combat Hostiles 11 | . . . . . . . . . . . . . . . . . . 2 . 3 . 6 Parts Fried 39 | . . . . 3 . . . . . . . . . . . 3 . 2 3 9 1 18 Impact Corruptions 1 | . . . . . . . . . . . . . . . . . . . . . . 1 Robots Melted 1 | . . . . . . . . . . . . . . . . . . . . 1 . . Combat Hostiles 1 | . . . . . . . . . . . . . . . . . . . . 1 . . Parts Melted 25 | . . . 2 1 . . 5 1 . . . . . . . . 3 . 1 6 2 4 Heat Transferred 14171 | . 185 . 1443 1110 . . 1554 1497 148 . . . . . . 25 807 48 . 3356 716 3282 Parts Sabotaged 1 | . . . . . . . . . . . . . . . . . . . . 1 . . Parts Stolen . | . . . . . . . . . . . . . . . . . . . . . . . Parts Stripped . | . . . . . . . . . . . . . . . . . . . . . . . Power Chain Reactions 8 | . . . . . . . . . . . . . . . . . . . . 2 1 5 Missiles Intercepted 37 | . . . . . . . . . . . . . . . . . . . . 3 . 34 Alert | -11 -10 -10 -9 -9 -9 -9 -7 -7 -7 -7 -6 -6 -5 -5 -4 -4 -4 -4 -3 -3 -3 -2 ------- Run | Scr Mat Min Mat Sto Gar Rec Fac Gar Fac Gar Fac Gar Fac Gar Fac Gar Fac Gar Res Tes Gar Res Peak Influence 1463 | 5 189 115 363 438 1006 579 1017 785 675 1176 676 702 506 642 404 884 706 793 541 1276 1414 1463 Initial 1002 | . 3 1 . 18 206 452 1002 64 411 130 617 151 368 189 336 2 464 18 445 303 957 795 Average 530 | 2 97 22 147 317 665 336 541 431 385 826 378 591 366 445 108 635 340 473 275 522 1267 1223 Maximum Alert Level 4 | . . . 1 2 3 2 3 3 2 4 2 3 2 2 2 3 3 3 2 4 4 4 Low Security (%) 22 | 100 100 100 65 14 . 17 8 13 23 10 36 1 . 5 72 12 33 32 44 . . . Level 1 20 | . . . 34 61 25 45 11 26 17 10 10 4 81 38 24 3 14 14 18 37 . . Level 2 28 | . . . . 24 21 36 57 55 58 3 52 66 18 55 2 27 50 12 36 43 . . Level 3 16 | . . . . . 53 . 22 5 . 47 . 28 . . . 57 2 40 . 15 4 23 Level 4 12 | . . . . . . . . . . 29 . . . . . . . . . 3 95 76 Level 5 . | . . . . . . . . . . . . . . . . . . . . . . . High Security . | . . . . . . . . . . . . . . . . . . . . . . . Max Security . | . . . . . . . . . . . . . . . . . . . . . . . Squads Dispatched 83 | . 2 . 1 6 . . 4 . 4 . 4 . 3 . 4 . 7 . 14 24 . 10 Investigation 9 | . 1 . . . . . . . . . 1 . . . 1 . . . 2 2 . 2 Extermination 25 | . . . . . . . 3 . 2 . 1 . . . 1 . 2 . 6 6 . 4 Reinforcement 22 | . 1 . 1 3 . . 1 . 1 . 1 . . . 2 . 3 . 3 6 . . Assault 9 | . . . . . . . . . . . 1 . . . . . 1 . 1 2 . 4 Garrison 18 | . . . . 3 . . . . 1 . . . 3 . . . 1 . 2 8 . . Intercept . | . . . . . . . . . . . . . . . . . . . . . . . Construction Impeded 5 | . . . . . . . . . . . . . . . 1 . 2 . . 2 . . Haulers Reinforced 2 | . . . . . . . . . 1 . . . . . . . . . 1 . . . Alert ID Control Effect 61 | . . . . . . . . . . . . 1 14 7 8 5 7 6 9 . 4 . Stealth | -11 -10 -10 -9 -9 -9 -9 -7 -7 -7 -7 -6 -6 -5 -5 -4 -4 -4 -4 -3 -3 -3 -2 --------- Run | Scr Mat Min Mat Sto Gar Rec Fac Gar Fac Gar Fac Gar Fac Gar Fac Gar Fac Gar Res Tes Gar Res Distress Signals 18 | . 2 1 2 1 . . . . 3 . 1 . 2 . 1 . 2 . . 3 . . Communications Jammed . | . . . . . . . . . . . . . . . . . . . . . . . Distress Signals . | . . . . . . . . . . . . . . . . . . . . . . . Times Spotted 764 | . 22 22 29 39 26 24 22 38 19 31 23 27 17 26 19 21 49 40 52 87 45 86 Peak Tracking Total 15 | . 4 8 6 7 5 4 5 5 2 8 4 7 8 6 4 5 7 8 5 9 10 15 Tactical Retreats 47 | . 1 3 4 4 6 . 2 . . . . . 1 . 1 . 3 3 2 8 2 7 Traps | -11 -10 -10 -9 -9 -9 -9 -7 -7 -7 -7 -6 -6 -5 -5 -4 -4 -4 -4 -3 -3 -3 -2 ------- Run | Scr Mat Min Mat Sto Gar Rec Fac Gar Fac Gar Fac Gar Fac Gar Fac Gar Fac Gar Res Tes Gar Res Traps Triggered 62 | . . . . 2 10 . 1 12 . 8 1 2 1 3 . 3 1 11 . 2 3 2 Indirectly . | . . . . . . . . . . . . . . . . . . . . . . . Trap Hack Attempts . | . . . . . . . . . . . . . . . . . . . . . . . Triggered . | . . . . . . . . . . . . . . . . . . . . . . . Disarmed . | . . . . . . . . . . . . . . . . . . . . . . . Reprogrammed . | . . . . . . . . . . . . . . . . . . . . . . . Reused . | . . . . . . . . . . . . . . . . . . . . . . . Traps Extracted . | . . . . . . . . . . . . . . . . . . . . . . . Installed . | . . . . . . . . . . . . . . . . . . . . . . . Triggered . | . . . . . . . . . . . . . . . . . . . . . . . Machines | -11 -10 -10 -9 -9 -9 -9 -7 -7 -7 -7 -6 -6 -5 -5 -4 -4 -4 -4 -3 -3 -3 -2 ---------- Run | Scr Mat Min Mat Sto Gar Rec Fac Gar Fac Gar Fac Gar Fac Gar Fac Gar Fac Gar Res Tes Gar Res Machines Disabled 82 | . 1 . . 3 4 . . 4 2 6 4 3 . 5 10 7 2 6 3 15 3 4 Max in Single Turn 2 | . 1 . . 1 1 . . 1 1 1 2 1 . 1 1 1 2 1 1 2 1 1 Garrison Access 4 | . . . . . . . . . 1 . 1 . . . . . 1 . 1 . . . Garrison Relay 30 | . . . . . 4 . . 4 . 4 . 2 . 4 . 4 . 4 . . 4 . Machines Sabotaged . | . . . . . . . . . . . . . . . . . . . . . . . Garrisons Compromised . | . . . . . . . . . . . . . . . . . . . . . . . Overloaded Fab Kills . | . . . . . . . . . . . . . . . . . . . . . . . Fab Network Shutdowns . | . . . . . . . . . . . . . . . . . . . . . . . Hacking | -11 -10 -10 -9 -9 -9 -9 -7 -7 -7 -7 -6 -6 -5 -5 -4 -4 -4 -4 -3 -3 -3 -2 --------- Run | Scr Mat Min Mat Sto Gar Rec Fac Gar Fac Gar Fac Gar Fac Gar Fac Gar Fac Gar Res Tes Gar Res Machines Accessed 60 | . 6 . 5 10 . 2 6 . 5 . 5 . 4 . 3 . 4 . 4 4 . 2 Terminals 45 | . 6 . 5 8 . 2 5 . 2 . 3 . 2 . 2 . 3 . 2 3 . 2 Fabricators . | . . . . . . . . . . . . . . . . . . . . . . . Repair Stations . | . . . . . . . . . . . . . . . . . . . . . . . Recycling Units 2 | . . . . 1 . . . . . . . . 1 . . . . . . . . . Scanalyzers . | . . . . . . . . . . . . . . . . . . . . . . . Garrison Access 13 | . . . . 1 . . 1 . 3 . 2 . 1 . 1 . 1 . 2 1 . . Total Hacks 144 | . 18 . 14 21 . 5 19 . 13 . 9 . 14 . 4 . 5 . 8 8 . 6 Successful 78 | . 9 . 7 11 . 1 14 . 8 . 4 . 10 . 3 . 2 . 4 4 . 1 Failed 66 | . 9 . 7 10 . 4 5 . 5 . 5 . 4 . 1 . 3 . 4 4 . 5 Catastrophic 13 | . . . 1 2 . 1 1 . 1 . 2 . . . . . 3 . 1 . . 1 Database Lockouts . | . . . . . . . . . . . . . . . . . . . . . . . Manual 84 | . 11 . 10 9 . 5 8 . 6 . 6 . 7 . 2 . 3 . 6 5 . 6 Terminals 114 | . 18 . 14 17 . 5 17 . 4 . 6 . 10 . 3 . 4 . 3 7 . 6 Fabricators . | . . . . . . . . . . . . . . . . . . . . . . . Repair Stations . | . . . . . . . . . . . . . . . . . . . . . . . Recycling Units 5 | . . . . 2 . . . . . . . . 3 . . . . . . . . . Scanalyzers . | . . . . . . . . . . . . . . . . . . . . . . . Garrison Access 25 | . . . . 2 . . 2 . 9 . 3 . 1 . 1 . 1 . 5 1 . . Terminal Hacks 29 | . 6 . 4 4 . 1 7 . . . . . 4 . . . . . 1 2 . . Prototype ID Bank 1 | . . . . . . . 1 . . . . . . . . . . . . . . . Open Door 3 | . . . . 2 . . . . . . . . . . . . . . . 1 . . Branch Access Points 1 | . . . 1 . . . . . . . . . . . . . . . . . . . Terminal Index 2 | . . . . 1 . . 1 . . . . . . . . . . . . . . . Unreport Threat 6 | . 1 . 2 . . 1 2 . . . . . . . . . . . . . . . Locate Traps 8 | . 2 . . 1 . . 1 . . . . . 2 . . . . . 1 1 . . Transport Status 1 | . . . . . . . . . . . . . 1 . . . . . . . . . Registered Components 2 | . 1 . . . . . . . . . . . 1 . . . . . . . . . Zone Layout 5 | . 2 . 1 . . . 2 . . . . . . . . . . . . . . . Fabricator Hacks . | . . . . . . . . . . . . . . . . . . . . . . . Repair Station Hacks . | . . . . . . . . . . . . . . . . . . . . . . . Recycling Unit Hacks 2 | . . . . 1 . . . . . . . . 1 . . . . . . . . . Retrieve Components 2 | . . . . 1 . . . . . . . . 1 . . . . . . . . . Scanalyzer . | . . . . . . . . . . . . . . . . . . . . . . . Garrison Access Hacks 14 | . . . . 1 . . 1 . 5 . 2 . 1 . 1 . 1 . 1 1 . . Unlock Access 8 | . . . . 1 . . 1 . 1 . 1 . 1 . 1 . 1 . . 1 . . Seal Access 1 | . . . . . . . . . 1 . . . . . . . . . . . . . Coupler Status 5 | . . . . . . . . . 3 . 1 . . . . . . . 1 . . . Unauthorized Hacks 33 | . 3 . 3 5 . . 6 . 3 . 2 . 4 . 2 . 1 . 2 1 . 1 Terminals 26 | . 3 . 3 4 . . 5 . 1 . 1 . 3 . 2 . 1 . 1 1 . 1 Track 10 | . 2 . 1 3 . . 2 . . . 1 . 1 . . . . . . . . . Assimilate 1 | . . . . . . . 1 . . . . . . . . . . . . . . . Botnet 9 | . 1 . 1 . . . 1 . . . . . 1 . 1 . 1 . 1 1 . 1 Disrupt 1 | . . . . 1 . . . . . . . . . . . . . . . . . . Operators 5 | . . . 1 . . . 1 . 1 . . . 1 . 1 . . . . . . . Fabricators . | . . . . . . . . . . . . . . . . . . . . . . . Repair Stations . | . . . . . . . . . . . . . . . . . . . . . . . Recycling Units 2 | . . . . 1 . . . . . . . . 1 . . . . . . . . . Reject 2 | . . . . 1 . . . . . . . . 1 . . . . . . . . . Scanalyzers . | . . . . . . . . . . . . . . . . . . . . . . . Garrison Access 5 | . . . . . . . 1 . 2 . 1 . . . . . . . 1 . . . Reprogram 2 | . . . . . . . . . 2 . . . . . . . . . . . . . Watchers 1 | . . . . . . . 1 . . . . . . . . . . . . . . . Eject 2 | . . . . . . . . . . . 1 . . . . . . . 1 . . . Data Cores Recovered 1 | . . . . . . . . . . . 1 . . . . . . . . . . . Used 1 | . . . . . . . . . . . 1 . . . . . . . . . . . Hacking Detections 49 | . 5 . 5 7 . 2 5 . 4 . 4 . 3 . 3 . 3 . 4 2 . 2 Full Trace Events 3 | . 1 . . . . . . . . . . . . . . . . . 1 . . 1 Feedback Events 2 | . 1 . . . . . . . . . . . . . . . . . . . . 1 Corruption 2 | . 1 . . . . . . . . . . . . . . . . . . . . 1 Feedback Blocked . | . . . . . . . . . . . . . . . . . . . . . . . Robot Schematics Acquired . | . . . . . . . . . . . . . . . . . . . . . . . Robots Built . | . . . . . . . . . . . . . . . . . . . . . . . Matter . | . . . . . . . . . . . . . . . . . . . . . . . Time . | . . . . . . . . . . . . . . . . . . . . . . . Total Robot Build Rating . | . . . . . . . . . . . . . . . . . . . . . . . Part Schematics Acquired . | . . . . . . . . . . . . . . . . . . . . . . . Parts Built . | . . . . . . . . . . . . . . . . . . . . . . . Matter . | . . . . . . . . . . . . . . . . . . . . . . . Time . | . . . . . . . . . . . . . . . . . . . . . . . Total Part Build Rating . | . . . . . . . . . . . . . . . . . . . . . . . Parts Repaired . | . . . . . . . . . . . . . . . . . . . . . . . Time . | . . . . . . . . . . . . . . . . . . . . . . . Parts Recycled . | . . . . . . . . . . . . . . . . . . . . . . . Recycled Matter . | . . . . . . . . . . . . . . . . . . . . . . . Retrieved Matter . | . . . . . . . . . . . . . . . . . . . . . . . Retrieved Components 19 | . . . . 9 . . . . . . . . 10 . . . . . . . . . Parts Scanalyzed . | . . . . . . . . . . . . . . . . . . . . . . . Part Schematics Acquired . | . . . . . . . . . . . . . . . . . . . . . . . Parts Damaged . | . . . . . . . . . . . . . . . . . . . . . . . Bothacking | -11 -10 -10 -9 -9 -9 -9 -7 -7 -7 -7 -6 -6 -5 -5 -4 -4 -4 -4 -3 -3 -3 -2 ------------ Run | Scr Mat Min Mat Sto Gar Rec Fac Gar Fac Gar Fac Gar Fac Gar Fac Gar Fac Gar Res Tes Gar Res Used RIF Installer 8 | . . . . . 1 . . 1 . 1 . 1 . 1 . 1 . 1 . . 1 . Command Fork 1 | . . . . . . . . 1 . . . . . . . . . . . . . . Threat Obfuscator 1 | . . . . . . . . . . . . . . . . . . 1 . . . . Robot Detection 1 | . . . . . . . . . . 1 . . . . . . . . . . . . Patrol Navigation 1 | . . . . . . . . . . . . . . 1 . . . . . . . . Alert ID Control 1 | . . . . . . . . . . . . 1 . . . . . . . . . . Structural Interface 1 | . . . . . . . . . . . . . . . . 1 . . . . . . Autoassimilate 1 | . . . . . . . . . . . . . . . . . . . . . 1 . Robots Hacked 179 | . . . . . . 2 6 13 12 1 13 12 8 7 14 7 22 16 19 10 11 6 Non-combat 52 | . . . . . . 2 5 . 7 . 3 . 4 . 6 1 10 . 8 3 . 3 Combat 127 | . . . . . . . 1 13 5 1 10 12 4 7 8 6 12 16 11 7 11 3 Robot Hacks Applied 234 | . . . . . . 2 11 14 17 1 20 14 9 7 18 7 32 16 25 19 15 7 parse_system 35 | . . . . . . 1 4 . 2 . 2 2 1 . 3 1 3 . 3 7 4 2 no_distress 12 | . . . . . . . . . 2 . 2 . . . 1 . 4 . 3 . . . generate_echo 1 | . . . . . . . 1 . . . . . . . . . . . . . . . find_chute 3 | . . . . . . . 2 . . . . . . . 1 . . . . . . . ignore_repairs 4 | . . . . . . . . . . . . . . . . . 3 . . 1 . . map_earth 2 | . . . . . . . . . . . . . 1 . 1 . . . . . . . drop_inventory 2 | . . . . . . . . . . . . . 1 . . . 1 . . . . . find_recycling 2 | . . . . . . . . . . . 1 . . . . . . . 1 . . . ignore_parts 5 | . . . . . . 1 . . . . . . . . . . . . 4 . . . purge_threat 20 | . . . . . . . 2 . 3 . 4 . . . 3 . 5 . 3 . . . locate_traps 1 | . . . . . . . . . 1 . . . . . . . . . . . . . reprogram_traps 1 | . . . . . . . . . 1 . . . . . . . . . . . . . block_reporting 3 | . . . . . . . . . . . 1 . . . . . 2 . . . . . map_route 12 | . . . . . . . . . 2 . . . 1 . 1 . 3 . 1 2 . 2 mark_security 1 | . . . . . . . . . . . . . 1 . . . . . . . . . disable_scanner 1 | . . . . . . . . . . . . . . . . . . . . 1 . . locate_prototypes 3 | . . . . . . . . . . . . . . . . . . . . 3 . . report_analyses 3 | . . . . . . . . . . . . . . . . . . . . 3 . . find_shortcuts 2 | . . . . . . . . . . . . 1 . . . . . . 1 . . . find_garrison 4 | . . . . . . . . . . . . . . . . . 1 . 2 . . 1 disrupt_area 1 | . . . . . . . . . . . . . . . . . . . 1 . . . spike_heat 1 | . . . . . . . . . . . . . . . . . . 1 . . . . overload_power 2 | . . . . . . . . . . . 1 . . . . . . . 1 . . . amplify_resonance 4 | . . . . . . . . . . . 1 1 . . 1 . . . . . . 1 wipe_record 4 | . . . . . . . . 1 . . . 1 . 1 . . . . . . 1 . disable_weapons 2 | . . . . . . . . 1 . . . . . . . . . . . . 1 . reboot_system 3 | . . . . . . . 1 1 . . . . 1 . . . . . . . . . go_dormant 2 | . . . . . . . . . 2 . . . . . . . . . . . . . overwrite_iff 17 | . . . . . . . 1 1 . . 1 . . . . . 2 7 1 2 1 1 streamctrl_high 2 | . . . . . . . . 1 . . . . . . . . 1 . . . . . formatsys_low 1 | . . . . . . . . . . . . . . . 1 . . . . . . . formatsys_high 78 | . . . . . . . . 9 4 1 7 9 3 6 6 6 7 8 4 . 8 . Relay Couplers Released 139 | . . . . . 14 . . 16 . 15 8 10 . 18 . 14 1 16 5 4 18 . Ejected 8 | . . . . . . . . . . . 4 . . . . . . . 4 . . . Machine Destruction 123 | . . . . . 14 . . 16 . 15 . 10 . 18 . 14 1 16 1 . 18 . Programmers 8 | . . . . . . . . . . . 4 . . . . . . . . 4 . . Attached 78 | . . . . . . . 2 6 6 1 7 6 2 5 4 6 8 6 5 3 7 4 Robots Rewired 47 | . . . . . . 30 . 6 . . . 5 . . . . . 6 . . . . Allies Hacked 5 | . . . . . . . . . . . . . . . . . 1 . 4 . . . Hacks Repelled . | . . . . . . . . . . . . . . . . . . . . . . . Allies | -11 -10 -10 -9 -9 -9 -9 -7 -7 -7 -7 -6 -6 -5 -5 -4 -4 -4 -4 -3 -3 -3 -2 -------- Run | Scr Mat Min Mat Sto Gar Rec Fac Gar Fac Gar Fac Gar Fac Gar Fac Gar Fac Gar Res Tes Gar Res Total Allies 158 | . . . . . . 30 2 17 4 1 9 19 4 7 8 7 11 21 5 2 10 1 Largest Group 22 | . . . . . . 22 17 8 8 6 7 15 14 6 9 5 6 13 11 1 4 1 Highest-Rated Group 629 | . . . . . . 323 261 164 197 190 142 392 399 169 294 247 308 629 531 56 154 69 Highest-Rated Ally 115 | . . . . . . 24 32 32 32 32 41 47 47 49 49 58 115 58 56 56 64 69 Total Orders 126 | . . . . . . . . 6 13 2 5 4 . 6 4 3 9 7 43 . 2 22 STAY 41 | . . . . . . . . 3 6 1 3 2 . 3 2 2 5 5 5 . 1 3 ROAM 3 | . . . . . . . . . . . . . . . . . . . 3 . . . FOLLOW 32 | . . . . . . . . 3 7 1 2 2 . 3 2 1 4 2 4 . 1 . EXPLORE 36 | . . . . . . . . . . . . . . . . . . . 23 . . 13 RETURN 14 | . . . . . . . . . . . . . . . . . . . 8 . . 6 Ally Attacks 896 | . . . . . . 95 9 55 53 47 46 86 102 30 75 19 50 36 153 3 34 3 Total Damage 20507 | . . . . . . 844 198 1275 1251 1464 991 1072 2430 565 1269 517 1644 1035 4646 107 1056 143 Kills 157 | . . . . . . 24 1 12 12 17 8 11 15 7 10 5 7 7 17 . 4 . Allies Corrupted 7 | . . . . . . . . . . . . . 1 . 2 . 2 . 2 . . . Allies Melted . | . . . . . . . . . . . . . . . . . . . . . . . Intel | -11 -10 -10 -9 -9 -9 -9 -7 -7 -7 -7 -6 -6 -5 -5 -4 -4 -4 -4 -3 -3 -3 -2 ------- Run | Scr Mat Min Mat Sto Gar Rec Fac Gar Fac Gar Fac Gar Fac Gar Fac Gar Fac Gar Res Tes Gar Res Robot Analysis Total . | . . . . . . . . . . . . . . . . . . . . . . . Derelict Logs Recovered 1 | . . 1 . . . . . . . . . . . . . . . . . . . . Drone Launches 26 | . . . . . . . . . . . . . . . . . . . 18 . . 8 Drone Recoveries 19 | . . . . . . . . . . . . . . . . . . . 14 . . 5 Exploration | -11 -10 -10 -9 -9 -9 -9 -7 -7 -7 -7 -6 -6 -5 -5 -4 -4 -4 -4 -3 -3 -3 -2 ------------- Run | Scr Mat Min Mat Sto Gar Rec Fac Gar Fac Gar Fac Gar Fac Gar Fac Gar Fac Gar Res Tes Gar Res Turns Passed 32886 | 79 900 588 981 1691 1097 1085 1925 2020 1138 872 774 915 669 1247 961 1804 1274 3710 2081 2755 2653 1667 Spaces Moved 17343 | 45 410 337 570 760 487 440 937 888 825 582 557 583 483 873 649 1217 864 1888 928 1094 1047 879 Core 165 | 6 . 38 32 . . . . . . . . . . . . . . . . . . 89 Treads 6218 | 20 410 239 . 624 487 440 690 . . . . . . . . . . 296 338 1094 1047 533 Legs 534 | . . . 398 136 . . . . . . . . . . . . . . . . . . Wheels 10085 | 19 . 60 56 . . . 247 888 825 582 557 583 483 873 649 1217 864 1592 590 . . . Hover 84 | . . . 84 . . . . . . . . . . . . . . . . . . . Flight 257 | . . . . . . . . . . . . . . . . . . . . . . 257 Fastest Speed 34 | 50 160 50 50 150 180 180 160 160 110 110 110 115 110 110 110 110 110 103 140 165 190 34 Average Speed 144 | 114 176 152 121 173 180 180 176 172 111 110 111 115 113 110 115 118 110 152 165 174 190 128 Slowest Speed 300 | 160 180 180 180 180 180 180 240 180 180 110 115 115 115 110 120 125 110 300 185 190 190 190 Overloaded Moves . | . . . . . . . . . . . . . . . . . . . . . . . Propulsion Burnouts . | . . . . . . . . . . . . . . . . . . . . . . . Robots Hopped 9 | . . . . . . . . . . . . . . . . . . . . . . 9 Cave-ins Triggered . | . . . . . . . . . . . . . . . . . . . . . . . Exploration Rate (%) 59 | 3 81 61 49 86 81 84 25 89 21 87 16 63 13 85 19 99 27 99 44 92 99 37 Regions Visited 22 Branch Regions 4 Pre-discovered Areas . | . . . . . . . . . . . . . . . . . . . . . . . Known Exits Taken 10 | . . . 1 1 . . 1 . 1 . 1 . 1 . 1 . 1 . 1 1 . . Unknown Exits Taken 4 | 1 1 1 . . . 1 . . . . . . . . . . . . . . . . Scrap Searched . | . . . . . . . . . . . . . . . . . . . . . . . Spaces Dug 67 | . . . 2 1 . . 1 1 . 2 . . . 2 2 . 5 6 5 24 . 16 Terrain Destroyed 878 | . . . 23 6 26 . 10 1 8 24 45 26 2 19 31 149 43 152 42 101 18 152 Melee 21 | . . . . 1 . . 1 1 . 2 . . . 2 2 . 4 . 5 1 . 2 Projectile 211 | . . . 23 5 . . . . 1 1 2 . 2 2 2 8 21 58 18 34 4 30 AOE 646 | . . . . . 26 . 9 . 7 21 43 26 . 15 27 141 18 94 19 66 14 120 Terrain Rammed . | . . . . . . . . . . . . . . . . . . . . . . . Walls Destroyed . | . . . . . . . . . . . . . . . . . . . . . . . Machines Disabled . | . . . . . . . . . . . . . . . . . . . . . . . Actions | -11 -10 -10 -9 -9 -9 -9 -7 -7 -7 -7 -6 -6 -5 -5 -4 -4 -4 -4 -3 -3 -3 -2 --------- Run | Scr Mat Min Mat Sto Gar Rec Fac Gar Fac Gar Fac Gar Fac Gar Fac Gar Fac Gar Res Tes Gar Res Total 23213 | 67 519 380 784 1003 598 618 1126 1247 994 747 658 783 574 1074 800 1526 1092 2572 1353 1738 1638 1322 Wait 2219 | . 51 13 123 90 8 12 69 64 65 15 11 64 25 73 56 121 71 330 118 237 432 171 Move 17307 | 44 409 336 569 759 485 439 937 887 824 581 557 582 482 872 648 1216 864 1887 927 1093 1046 863 Hop 7 | . . . . . . . . . . . . . . . . . . . . . . 7 Pick Up 301 | 8 6 3 14 25 8 4 15 14 10 9 6 13 6 10 6 25 8 41 29 19 12 10 Fast Attach 257 | 7 4 3 18 16 1 . 5 6 6 2 9 3 5 3 6 17 9 20 30 34 21 32 Attach 207 | 1 1 3 2 3 4 . 7 10 5 5 7 7 5 9 9 23 10 32 21 14 7 22 Detach 59 | . 4 1 2 1 . . 2 1 . 1 1 . 2 1 4 6 1 11 5 4 3 9 Swap 352 | 2 3 3 1 16 10 3 19 30 21 18 12 9 7 20 11 8 31 21 36 48 7 16 Drop 393 | 3 4 3 14 31 7 4 15 12 17 10 10 9 6 8 9 33 13 33 57 46 27 22 Fire 1395 | 2 37 14 41 58 37 22 44 64 43 40 39 40 27 34 48 53 81 97 111 242 79 142 Melee 167 | . . . . 4 18 69 11 11 1 6 4 2 . 19 2 . 4 1 12 1 . 2 Ram 15 | . . 1 . . . . . . . . . . . . . . . . . . . 14 Kick . | . . . . . . . . . . . . . . . . . . . . . . . Crush 12 | . . . . . . . . . . . . . . . . . . . . . . 12 Escape Stasis 262 | . . . . . 20 . 2 76 . 60 . 8 8 24 . 24 . 36 . . 4 . Rewire 260 | . . . . . . 65 . 72 2 . 2 46 1 1 1 . . 63 7 . . . Trap . | . . . . . . . . . . . . . . . . . . . . . . . Miscellaneous . | . . . . . . . . . . . . . . . . . . . . . . . Route ------- -11/Scrapyard -10/Materials (discovered 3 exits: *Mat / [*Min x2]) -10/Mines (discovered 2 exits: *Mat x2) -9/Materials (discovered 4 exits: [*Mat] / *Min x2 / *Sto) -9/Storage (discovered 2 exits: [*Mat] / Gar) -9/Garrison (discovered 3 exits: *Rec x3) -9/Recycling -7/Factory (discovered 3 exits: *Fac / [*Low] / Gar) -7/Garrison (discovered 3 exits: *Fac x3) -7/Factory (discovered 2 exits: *Fac / Gar) -7/Garrison (discovered 3 exits: *Fac x3) -6/Factory -6/Garrison -5/Factory (discovered 2 exits: *Fac / Gar) -5/Garrison (discovered 3 exits: *Fac x3) -4/Factory (discovered 2 exits: *Res / Gar) -4/Garrison (discovered 3 exits: *Fac x3) -4/Factory (discovered 2 exits: [*Upp] / Gar) -4/Garrison (discovered 3 exits: *Res x3) -3/Research (discovered 3 exits: *Res x2 / *Tes) -3/Testing (discovered 2 exits: *Res / Gar) -3/Garrison (discovered 3 exits: *Res x3) -2/Research (discovered 2 exits: *Acc x2) History --------- Turn | Location | Event 18 | -11/Scrapyard | Discovered new exit (range 15) 80 | -11/Scrapyard | Entered Materials 318 | -10/Materials | Build established: Mutant 344 | -10/Materials | Discovered new exit (range 14) 720 | -10/Materials | Discovered new exit (range 9) 821 | -10/Materials | Discovered new exit (range 16) 980 | -10/Materials | Entered Mines 1016 | -10/Mines | Learned Materials trap positions 1275 | -10/Mines | Discovered new exit (range 9) 1346 | -10/Mines | Lost 3 parts (1p2n) 1481 | -10/Mines | Assembled infested the area 1486 | -10/Mines | Assisted by a Guerilla fighting off Assembled 1509 | -10/Mines | Core integrity fell below 50% 1549 | -10/Mines | Released all parts (2) 1551 | -10/Mines | Core integrity fell below 20% 1563 | -10/Mines | Discovered new exit (range 8) 1568 | -10/Mines | Entered Materials 1568 | -9/Materials | Evolved 2 slots: Propulsion x1, Weapon x1 1569 | -9/Materials | Loaded intel: 13 trap records 1580 | -9/Materials | Lost 4 parts (1p2n1w) 2171 | -9/Materials | Discovered new exit (range 8) 2202 | -9/Materials | Identified exit to Mines 2202 | -9/Materials | Identified exit to Storage 2549 | -9/Materials | Entered Storage 2569 | -9/Storage | Build established: Gunner 2718 | -9/Storage | Garrison activated, responded to threat 2893 | -9/Storage | Lost 6 parts (1p2n1u2w) 3511 | -9/Storage | Build established: Hauler-Gunner 3671 | -9/Storage | Discovered new exit (range 15) 4239 | -9/Storage | Identified exit to Garrison 4240 | -9/Storage | Entered Garrison 4249 | -9/Garrison | Installed Relay Interface Framework 4304 | -9/Garrison | Triggered checkpoint 4378 | -9/Garrison | Garrison Relay disabled 4522 | -9/Garrison | Triggered checkpoint 4534 | -9/Garrison | Core integrity fell below 50% 4578 | -9/Garrison | Lost 3 parts (3n) 4581 | -9/Garrison | Destroyed 8 combat bots 4652 | -9/Garrison | Discovered new exit (range 8) 4694 | -9/Garrison | Triggered checkpoint 4752 | -9/Garrison | Garrison Relay disabled 4929 | -9/Garrison | Garrison Relay disabled 4984 | -9/Garrison | Triggered checkpoint 5014 | -9/Garrison | Triggered checkpoint 5028 | -9/Garrison | Discovered new exit (range 10) 5130 | -9/Garrison | Triggered checkpoint 5224 | -9/Garrison | Triggered checkpoint 5253 | -9/Garrison | Garrison Relay disabled 5310 | -9/Garrison | Discovered new exit (range 13) 5337 | -9/Garrison | Entered Recycling 5344 | -9/Recycling | Spotter reported a threat 5345 | -9/Recycling | Spotter reported a threat 5367 | -9/Recycling | Spotter reported a threat 5369 | -9/Recycling | Spotter reported a threat 5375 | -9/Recycling | Spotter reported a threat 5397 | -9/Recycling | Spotter reported a threat 5397 | -9/Recycling | Spotter reported a threat 5424 | -9/Recycling | Spotter reported a threat 5425 | -9/Recycling | Spotter reported a threat 5440 | -9/Recycling | Spotter reported a threat 5455 | -9/Recycling | Spotter reported a threat 5458 | -9/Recycling | Spotter reported a threat 5493 | -9/Recycling | Spotter reported a threat 5550 | -9/Recycling | Spotter reported a threat 5567 | -9/Recycling | Spotter reported a threat 5604 | -9/Recycling | Spotter reported a threat 5641 | -9/Recycling | Spotter reported a threat 5657 | -9/Recycling | Spotter reported a threat 5661 | -9/Recycling | Spotter reported a threat 5677 | -9/Recycling | Spotter reported a threat 5686 | -9/Recycling | Spotter reported a threat 5694 | -9/Recycling | Spotter reported a threat 5740 | -9/Recycling | Spotter reported a threat 5759 | -9/Recycling | Spotter reported a threat 5767 | -9/Recycling | Spotter reported a threat 5793 | -9/Recycling | Spotter reported a threat 5820 | -9/Recycling | Spotter reported a threat 5827 | -9/Recycling | Spotter reported a threat 5846 | -9/Recycling | Spotter reported a threat 5864 | -9/Recycling | Spotter reported a threat 5880 | -9/Recycling | Spotter reported a threat 5886 | -9/Recycling | Spotter reported a threat 5939 | -9/Recycling | Spotter reported a threat 5984 | -9/Recycling | Spotter reported a threat 6014 | -9/Recycling | Spotter reported a threat 6067 | -9/Recycling | Spotter reported a threat 6165 | -9/Recycling | Spotter reported a threat 6217 | -9/Recycling | Spotter reported a threat 6243 | -9/Recycling | Spotter reported a threat 6278 | -9/Recycling | Spotter reported a threat 6278 | -9/Recycling | Spotter reported a threat 6295 | -9/Recycling | Discovered new exit (range 16) 6303 | -9/Recycling | Build established: Commander-Mutant 6325 | -9/Recycling | Spotter reported a threat 6325 | -9/Recycling | Spotter reported a threat 6364 | -9/Recycling | Spotter reported a threat 6378 | -9/Recycling | Spotter reported a threat 6391 | -9/Recycling | Spotter reported a threat 6395 | -9/Recycling | Spotter reported a threat 6422 | -9/Recycling | Entered Factory 6422 | -7/Factory | Accompanied by 17 allies 6422 | -7/Factory | Evolved 4 slots: Utility x4 7292 | -7/Factory | Discovered new exit (range 9) 7308 | -7/Factory | Build established: Scavenger-Mutant 8099 | -7/Factory | Discovered new exit (range 15) 8227 | -7/Factory | Build established: Bothacker-Mutant 8346 | -7/Factory | Identified exit to Garrison 8347 | -7/Factory | Entered Garrison 8347 | -7/Garrison | Accompanied by 1 ally 8402 | -7/Garrison | Triggered checkpoint 8622 | -7/Garrison | Garrison Relay disabled 8740 | -7/Garrison | Triggered checkpoint 8934 | -7/Garrison | Discovered new exit (range 14) 9018 | -7/Garrison | Triggered checkpoint 9038 | -7/Garrison | Garrison Relay disabled 9135 | -7/Garrison | Triggered checkpoint 9420 | -7/Garrison | Garrison Relay disabled 9509 | -7/Garrison | Triggered checkpoint 9598 | -7/Garrison | Triggered checkpoint 9632 | -7/Garrison | Triggered checkpoint 9751 | -7/Garrison | Discovered new exit (range 12) 9790 | -7/Garrison | Found Unknown Protection 9790 | -7/Garrison | Identified Powered Armor 9794 | -7/Garrison | Found Powered Armor 9798 | -7/Garrison | Found Powered Armor 9802 | -7/Garrison | Found Powered Armor 9935 | -7/Garrison | Expanded RIF knowledge: Command Fork 10070 | -7/Garrison | Triggered checkpoint 10219 | -7/Garrison | Discovered new exit (range 8) 10244 | -7/Garrison | Triggered checkpoint 10292 | -7/Garrison | Garrison Relay disabled 10367 | -7/Garrison | Entered Factory 10367 | -7/Factory | Accompanied by 8 allies 10430 | -7/Factory | Garrison activated, responded to threat 10431 | -7/Factory | Discovered new exit (range 109) 10960 | -7/Factory | Identified exit to Garrison 11505 | -7/Factory | Entered Garrison 11505 | -7/Garrison | Accompanied by 6 allies 11584 | -7/Garrison | Triggered checkpoint 11656 | -7/Garrison | Triggered checkpoint 11677 | -7/Garrison | Triggered checkpoint 11689 | -7/Garrison | Triggered checkpoint 11690 | -7/Garrison | Triggered checkpoint 11733 | -7/Garrison | Destroyed 11 combat bots 11787 | -7/Garrison | Discovered new exit (range 15) 11838 | -7/Garrison | Triggered checkpoint 11888 | -7/Garrison | Garrison Relay disabled 11997 | -7/Garrison | Discovered new exit (range 9) 12014 | -7/Garrison | Expanded RIF knowledge: Robot Detection 12044 | -7/Garrison | Triggered checkpoint 12122 | -7/Garrison | Garrison Relay disabled 12205 | -7/Garrison | Discovered new exit (range 14) 12220 | -7/Garrison | Triggered checkpoint 12250 | -7/Garrison | Garrison Relay disabled 12377 | -7/Garrison | Entered Factory 12377 | -6/Factory | Accompanied by 1 ally 12377 | -6/Factory | Evolved 2 slots: Utility x2 12830 | -6/Factory | Found Powered Armor 13145 | -6/Factory | Spotted B-75 Beast 13151 | -6/Factory | Identified exit to Garrison 13151 | -6/Factory | Entered Garrison 13151 | -6/Garrison | Accompanied by 1 ally 13202 | -6/Garrison | Garrison Relay disabled 13304 | -6/Garrison | Triggered checkpoint 13324 | -6/Garrison | Triggered checkpoint 13350 | -6/Garrison | Triggered checkpoint 13568 | -6/Garrison | Discovered new exit (range 8) 13588 | -6/Garrison | Expanded RIF knowledge: Alert ID Control 13610 | -6/Garrison | Triggered checkpoint 13633 | -6/Garrison | Garrison Relay disabled 13889 | -6/Garrison | Build established: Botlord-Mutant 14066 | -6/Garrison | Entered Factory 14066 | -5/Factory | Accompanied by 14 allies 14066 | -5/Factory | Evolved 2 slots: Propulsion x1, Utility x1 14089 | -5/Factory | Discovered new exit (range 83) 14336 | -5/Factory | P-70 Sage assimilated allied Virus 5h 14338 | -5/Factory | P-70 Sage assimilated allied Virus 5g 14484 | -5/Factory | Garrison activated, responded to threat 14713 | -5/Factory | Identified exit to Garrison 14735 | -5/Factory | Entered Garrison 14735 | -5/Garrison | Accompanied by 6 allies 14774 | -5/Garrison | Triggered checkpoint 14823 | -5/Garrison | Triggered checkpoint 14824 | -5/Garrison | Triggered checkpoint 14875 | -5/Garrison | Destroyed 8 combat bots 14902 | -5/Garrison | Discovered new exit (range 13) 15030 | -5/Garrison | Triggered checkpoint 15159 | -5/Garrison | Garrison Relay disabled 15280 | -5/Garrison | Triggered checkpoint 15344 | -5/Garrison | Triggered checkpoint 15370 | -5/Garrison | Garrison Relay disabled 15406 | -5/Garrison | Discovered new exit (range 13) 15528 | -5/Garrison | Discovered new exit (range 9) 15545 | -5/Garrison | Expanded RIF knowledge: Watcher Feeds 15580 | -5/Garrison | Triggered checkpoint 15596 | -5/Garrison | Garrison Relay disabled 15682 | -5/Garrison | Triggered checkpoint 15714 | -5/Garrison | Garrison Relay disabled 15982 | -5/Garrison | Entered Factory 15982 | -4/Factory | Accompanied by 6 allies 15982 | -4/Factory | Evolved 2 slots: Utility x2 16851 | -4/Factory | Discovered new exit (range 8) 16940 | -4/Factory | Identified exit to Garrison 16943 | -4/Factory | Entered Garrison 17006 | -4/Garrison | Triggered checkpoint 17075 | -4/Garrison | Garrison Relay disabled 17119 | -4/Garrison | Triggered checkpoint 17258 | -4/Garrison | Destroyed 7 combat bots 17336 | -4/Garrison | Discovered new exit (range 11) 17356 | -4/Garrison | Expanded RIF knowledge: Structural Interface 17442 | -4/Garrison | Triggered checkpoint 17484 | -4/Garrison | Garrison Relay disabled 17715 | -4/Garrison | Garrison Relay disabled 17722 | -4/Garrison | Triggered checkpoint 17764 | -4/Garrison | Discovered new exit (range 16) 18210 | -4/Garrison | Found Unknown Device 18210 | -4/Garrison | Identified Antimissile System 18224 | -4/Garrison | Discovered new exit (range 15) 18287 | -4/Garrison | Triggered checkpoint 18320 | -4/Garrison | Garrison Relay disabled 18747 | -4/Garrison | Entered Factory 18747 | -4/Factory | Accompanied by 5 allies 18908 | -4/Factory | P-70 Sage assimilated allied Eye 7a 19062 | -4/Factory | Discovered new exit (range 20) 19400 | -4/Factory | Spotted B-86 Titan 19549 | -4/Factory | Assembled infested ambush trap array 19676 | -4/Factory | Spotted B-86 Titan 19686 | -4/Factory | Hijacked Titan 7a control node with streamctrl_high 19710 | -4/Factory | Destroyed Titan 7a 20021 | -4/Factory | Identified exit to Garrison 20021 | -4/Factory | Entered Garrison 20131 | -4/Garrison | Lost 10 parts (1p4n3u2w) 20254 | -4/Garrison | Garrison Relay disabled 20406 | -4/Garrison | Triggered checkpoint 20418 | -4/Garrison | Triggered checkpoint 20478 | -4/Garrison | Found Unknown Launcher 20478 | -4/Garrison | Identified Gamma Bomb Array 20511 | -4/Garrison | Triggered checkpoint 20593 | -4/Garrison | Found Adv. Powered Armor 20716 | -4/Garrison | Build established: Bothacker-Mutant 20753 | -4/Garrison | Spotted B-86 Titan 21012 | -4/Garrison | Found Adv. Powered Armor 21110 | -4/Garrison | Triggered checkpoint 21144 | -4/Garrison | Triggered checkpoint 21280 | -4/Garrison | Destroyed B-86 Titan 21542 | -4/Garrison | Triggered checkpoint 21549 | -4/Garrison | Build established: Commander-Tank 21630 | -4/Garrison | Discovered new exit (range 12) 21744 | -4/Garrison | Triggered checkpoint 21806 | -4/Garrison | Garrison Relay disabled 21938 | -4/Garrison | Triggered checkpoint 22187 | -4/Garrison | Build established: Botlord-Tank 22244 | -4/Garrison | Triggered checkpoint 22291 | -4/Garrison | Garrison Relay disabled 22330 | -4/Garrison | Discovered new exit (range 13) 22494 | -4/Garrison | Triggered checkpoint 22586 | -4/Garrison | Garrison Relay disabled 22638 | -4/Garrison | Discovered new exit (range 14) 22671 | -4/Garrison | Expanded RIF knowledge: Threat Obfuscation 23039 | -4/Garrison | Found Adv. Powered Armor 23731 | -4/Garrison | Entered Research 23731 | -3/Research | Accompanied by 11 allies 23731 | -3/Research | Evolved 2 slots: Power x1, Utility x1 23843 | -3/Research | Discovered new exit (range 60) 23955 | -3/Research | Found Prototype Device 23955 | -3/Research | Identified EM Disruption Field 24164 | -3/Research | Discovered new exit (range 24) 24284 | -3/Research | Identified exit to Research 24370 | -3/Research | Build established: Botlord-Mutant 24424 | -3/Research | P-80 Master assimilated allied Sentinel 7m 24541 | -3/Research | P-80 Master assimilated allied Sentinel 7j 24836 | -3/Research | P-80 Master assimilated allied Veteran 8b 24881 | -3/Research | Found EM Disruption Field 25043 | -3/Research | P-80 Master assimilated allied Assassin 8b 25454 | -3/Research | Found Prototype Processor 25454 | -3/Research | Identified Exp. Target Analyzer 25611 | -3/Research | Discovered new exit (range 11) 25628 | -3/Research | Identified exit to Testing 25812 | -3/Research | Entered Testing 26111 | -3/Testing | Garrison activated, responded to threat 26265 | -3/Testing | System corruption reached 10% 26533 | -3/Testing | Found Potential Cannon 26703 | -3/Testing | Discovered exit to Research (range 40) 26759 | -3/Testing | Build established: Bothacker-Mutant 26887 | -3/Testing | Found Prototype Protection 26887 | -3/Testing | Identified Lgt. Regenerative Plating 26901 | -3/Testing | Found Prototype Protection 26907 | -3/Testing | Found Lgt. Regenerative Plating 27043 | -3/Testing | Identified SHELL Armor 27044 | -3/Testing | Found Prototype Device 27064 | -3/Testing | Identified Exp. Thermal Shield 27102 | -3/Testing | Build established: Hauler-Tank 27216 | -3/Testing | Found Prototype Energy Cannon 27216 | -3/Testing | Identified Disintegrator 27324 | -3/Testing | Garrison activated, responded to threat 27475 | -3/Testing | Destroyed 7 combat bots 27623 | -3/Testing | Spotted PG-8258JLKF84 27648 | -3/Testing | Destroyed PG-8258JLKF84 27665 | -3/Testing | Found Exp. Weapon Cycler 27848 | -3/Testing | Found Prototype Energy Gun 27848 | -3/Testing | Identified Warp Gun 27861 | -3/Testing | First assault squad dispatched 28216 | -3/Testing | Found Exp. Transmission Jammer 28274 | -3/Testing | Scanned by Researcher 28316 | -3/Testing | Found Prototype Slashing Weapon 28316 | -3/Testing | Identified Vibroblade 28454 | -3/Testing | Garrison activated, responded to threat 28532 | -3/Testing | Destroyed 13 combat bots 28557 | -3/Testing | Identified exit to Garrison 28567 | -3/Testing | Entered Garrison 28577 | -3/Garrison | Expanded RIF knowledge: Autoassimilate 28710 | -3/Garrison | Destroyed 10 combat bots 28731 | -3/Garrison | Triggered checkpoint 28781 | -3/Garrison | Garrison Relay disabled 28906 | -3/Garrison | Triggered checkpoint 28912 | -3/Garrison | Triggered checkpoint 28934 | -3/Garrison | Spotted B-86 Titan 29094 | -3/Garrison | Build established: Bothacker-Mutant 29259 | -3/Garrison | Core integrity fell below 50% 29278 | -3/Garrison | Destroyed B-86 Titan 29358 | -3/Garrison | Triggered checkpoint 29472 | -3/Garrison | Triggered checkpoint 29622 | -3/Garrison | Discovered exit to Research (range 8) 29782 | -3/Garrison | Triggered checkpoint 29803 | -3/Garrison | Discovered exit to Research (range 14) 29814 | -3/Garrison | Build established: Botlord-Mutant 29956 | -3/Garrison | Triggered checkpoint 30034 | -3/Garrison | Garrison Relay disabled 30212 | -3/Garrison | Triggered checkpoint 30521 | -3/Garrison | Build established: Bothacker-Mutant 30528 | -3/Garrison | Discovered exit to Research (range 12) 30620 | -3/Garrison | Triggered checkpoint 30658 | -3/Garrison | Garrison Relay disabled 31036 | -3/Garrison | Build established: Botlord-Mutant 31220 | -3/Garrison | Entered Research 31220 | -2/Research | Evolved 2 slots: Utility x2 31481 | -2/Research | Discovered new exit (range 23) 31481 | -2/Research | Identified exit to Access 31627 | -2/Research | Destroyed 7 combat bots 31761 | -2/Research | First assault squad dispatched 31807 | -2/Research | Destroyed 9 combat bots 32305 | -2/Research | Spotted B-90 Cyclops 32306 | -2/Research | Discovered exit to Access (range 7) 32360 | -2/Research | Lost 6 parts (2n2u2w) 32692 | -2/Research | Found Prototype Device 32692 | -2/Research | Identified Thermal Barrier 32711 | -2/Research | Lost 15 parts (2p2n7u4w) 32733 | -2/Research | Spotted B-90 Cyclops 32791 | -2/Research | Spotted B-90 Cyclops 32817 | -2/Research | Spotted B-90 Cyclops 32823 | -2/Research | Core integrity fell below 50% 32823 | -2/Research | System corruption reached 10% 32852 | -2/Research | Found Prototype Device 32852 | -2/Research | Identified Exp. Shock Absorption System 32868 | -2/Research | Core integrity fell below 20% 32887 | -2/Research | Destroyed by Y-72 Warden with Quantum Rifle Last Messages --------------- 32871_ Destabilizing: System corrupted (+1). 32872_ Slug penetrates Wall. 32872_ Slammed into S-43 Plague. 32875_ Penetrated by Slug. 32876_ Slammed into Y-72 Warden. 32877_ Relay Coupler [NC] destroyed. 32877_ System corrupted by crushing effect (+4). 32877_ Destabilizing: System corrupted (+1). 32878_ Lyr. Light Armor Plating destroyed. 32878_ Penetrated by Slug. 32878_ Slammed into Y-72 Warden. 32878_ Destabilizing: System corrupted (+1). 32881_ Penetrated by Slug. 32881_ Slug penetrates S-43 Plague. 32884_ Penetrated by Slug. 32884_ Slug penetrates S-43 Plague. 32884_ S-43 Plague destroyed. 32884_ S-43 Plague suffers critical hit. 32884_ S-43 Plague destroyed. [Achievement: Superachiever] Map ----- +----------------------------------------------------+ | | | | | | | | | | | | | | | | | | | | | | | | | | | | | | | ?????????????????????????????????????????????????? | | ?????????????????????????????????????????????????? | | ?????????????????????????#######################?? | | ?????????????????????????# [[! ## # =#?? | | ?????????????????????????# [[! !## ] # | #?? | | ?????????????????????????# [[! ## / #?? | | ?????????????????????????# ## # #?? | | ???????????????????###+#?# ! ## # #?? | | ?????????????####### ?? !?# # #?? | | ????????????# ]####+#######+####/####### | | ????????????+ Y@gsg%g Y b | | ????????????# ] *############/############ | | ?????????????## #### ?????????# ######### | | ???????????????????## ??????????# # """T"" | | ????????????????????# ??????????# # """ "" | | ????????????????????# ???????????# # | | ????????????????????# ???????????# #! | | ????????????????????# ????????????# # | | ????????????????????# ????????????###/#### ^ | | ????????????????????#???????????????# #??# | | ????????????????????????????????????#%#??# | | ???????????????????????????????######/#### | | ???????????????????????????????# " "*!! " | | ???????????????????????????????# # !! | | ???????????????????????????????# """"" "!! | | ???????????????????????????????# ""T"" ######### | | ???????????????????????????????# #???????? | | ???????????????????????????????# #???????? | | ???????????????????????????????# #???????? | | ???????????????????????????????# | #???????? | | ???????????????????????????????######+####???##### | | ???????????????????????????????????????????? | | ???????????????????????????????????????????? | | ???????????????????????????????????????????? | | ???????????????????????????????????????????? | +----------------------------------------------------+ Best States ------------- Heat Dissipation 103 Energy Generation 43 Energy Capacity 1590 Matter Stores 501 Matter Capacity 550 Sight Range 22 Terrain Scan Range 16 Terrain Scan Density 60 Base Temperature (-) 200 Armor Coverage 3000 Resistance: TH 50 Resistance: EX 50 Resistance: EM 50 Core Shielding 30 Point Defense Rating 240 Weapon Cycling 30 Phase Shifting 10 Evasion (%) 72 Targeting Accuracy 8 Core Analysis 10 Armor Integrity Analysis 50 Recoil Reduction 4 Relay Coupler Types 135 Relay Coupler Value 6 Item Schematics ----------------- None Robot Schematics ------------------ None Fabricated ------------ Nothing Alien Tech Used ----------------- None Achievements -------------- Factory Defaults Pwned Superachiever Challenges ------------ None Game ------ Seed ScatterBiometalBlaster Manual? 0 Play Time 12:30:58 Cumulative 346.2 hours Start 2021.12.22 @ 20:09:02 End 2022.01.03 @ 23:59:39 Sessions 19 Manual Loads 0 Difficulty Rogue Special Mode None Game No. 15 Rogue 10 Adventurer 5 Explorer 0 Win Type - Total 16 Types 4/4/2/0/3/1/2/0/0 Lore% 66 Gallery% 80 Achievement% 75 Wizard Run 0 Options --------- ASCII 0 Keyboard 0 Movement Mouse Keybinds 0 Fullscreen 2 Font 18/SmallcapsGlow Map View 76x50 Tactical HUD 1 Map Filters NONE Filters NONE Steam 1 RUN: fb6d8ebd-afcc-4db1-a940-f87c0c753e39